[Event "*** Titled Tuesday Blitz"]
[Site "Chess.com"]
[Date "2018.06.05"]
[Round "5"]
[White "ezkybel"]
[Black "bait_or_mate"]
[Result "1-0"]
[WhiteElo "2354"]
[BlackElo "2399"]
[TimeControl "180+2"]
[EndTime "14:16:24 PDT"]
[Termination "ezkybel won by resignation"]

1. e4 {[%clk 0:03:01.9]} 1... c5 {[%clk 0:02:59.3]} 2. Nf3 {[%clk 0:03:02.5]}
2... e6 {[%clk 0:03:00.4]} 3. d4 {[%clk 0:03:03.4]} 3... cxd4 {[%clk 0:03:02.3]}
4. Nxd4 {[%clk 0:03:04.8]} 4... Nc6 {[%clk 0:03:03.6]} 5. Nxc6 {[%clk
0:03:05.9]} 5... bxc6 {[%clk 0:03:05.5]} 6. Bd3 {[%clk 0:03:07.4]} 6... d5
{[%clk 0:03:06.5]} 7. Nd2 {[%clk 0:03:07.7]} 7... Nf6 {[%clk 0:03:07.5]} 8. O-O
{[%clk 0:03:07.9]} 8... Be7 {[%clk 0:03:08.7]} 9. b3 {[%clk 0:03:07.5]} 9... O-O
{[%clk 0:03:09.3]} 10. Bb2 {[%clk 0:03:08.7]} 10... a5 {[%clk 0:03:10.7]} 11. a4
{[%clk 0:03:09.5]} 11... Ba6 {[%clk 0:03:11.7]} 12. Bxa6 {[%clk 0:03:09.5]}
12... Rxa6 {[%clk 0:03:13.6]} 13. exd5 {[%clk 0:03:10.8]} 13... cxd5 {[%clk
0:03:13]} 14. Qe2 {[%clk 0:03:09.7]} 14... Rc6 {[%clk 0:03:13.7]} 15. Rac1
{[%clk 0:03:10.5]} 15... Qb6 {[%clk 0:03:07.8]} 16. c4 {[%clk 0:03:09.1]} 16...
Rd8 {[%clk 0:03:00.8]} 17. h3 {[%clk 0:03:08.5]} 17... Rcc8 {[%clk 0:02:49.4]}
18. Rfd1 {[%clk 0:03:04.2]} 18... dxc4 {[%clk 0:02:40.4]} 19. Nxc4 {[%clk
0:02:47.5]} 19... Qxb3 {[%clk 0:02:36.7]} 20. Rxd8+ {[%clk 0:02:47.1]} 20...
Rxd8 {[%clk 0:02:38.6]} 21. Nxa5 {[%clk 0:02:47.7]} 21... Qxa4 {[%clk
0:02:37.8]} 22. Nc6 {[%clk 0:02:47.8]} 22... Re8 {[%clk 0:02:32.7]} 23. Nxe7+
{[%clk 0:02:47.1]} 23... Rxe7 {[%clk 0:02:34.6]} 24. Bxf6 {[%clk 0:02:41.7]}
24... gxf6 {[%clk 0:02:36.5]} 25. Rc8+ {[%clk 0:02:37.8]} 25... Kg7 {[%clk
0:02:32.4]} 26. Qf3 {[%clk 0:02:25.9]} 26... Qa1+ {[%clk 0:02:29.5]} 27. Kh2
{[%clk 0:02:24.2]} 27... Qe5+ {[%clk 0:02:30.9]} 28. g3 {[%clk 0:02:25.2]} 28...
Rc7 {[%clk 0:02:27.2]} 29. Qg4+ {[%clk 0:02:20.4]} 29... Kh6 {[%clk 0:02:21]}
30. Rg8 {[%clk 0:02:16.8]} 30... Qg5 {[%clk 0:01:15.4]} 31. Rxg5 {[%clk
0:02:11.3]} 31... fxg5 {[%clk 0:01:17.3]} 32. h4 {[%clk 0:02:06]} 32... Rc5
{[%clk 0:01:14.1]} 33. Qd4 {[%clk 0:02:03.6]} 33... Rf5 {[%clk 0:01:10.5]} 34.
h5 {[%clk 0:01:11.5]} 34... e5 {[%clk 0:00:56.4]} 35. Qb6+ {[%clk 0:00:59.2]}
35... Kxh5 {[%clk 0:00:52.2]} 36. Kh3 {[%clk 0:00:57.8]} 36... g4+ {[%clk
0:00:49.6]} 37. Kg2 {[%clk 0:00:59.3]} 37... h6 {[%clk 0:00:42.1]} 38. Qb1
{[%clk 0:00:54.4]} 38... Kg5 {[%clk 0:00:41.6]} 39. Qc1+ {[%clk 0:00:54.2]}
39... Kg6 {[%clk 0:00:42.6]} 40. Qc6+ {[%clk 0:00:52.3]} 40... Kg5 {[%clk
0:00:25.8]} 41. Qe4 {[%clk 0:00:51.7]} 41... f6 {[%clk 0:00:20.1]} 42. Qe3+
{[%clk 0:00:52.8]} 42... Kg6 {[%clk 0:00:20.6]} 43. Qd3 {[%clk 0:00:54.2]} 43...
h5 {[%clk 0:00:19.7]} 44. Qd7 {[%clk 0:00:55.7]} 44... Rf3 {[%clk 0:00:19.5]}
45. Qe8+ {[%clk 0:00:56.6]} 45... Kh6 {[%clk 0:00:20.3]} 46. Qf7 {[%clk
0:00:54.6]} 46... e4 {[%clk 0:00:17.5]} 47. Qf8+ {[%clk 0:00:54]} 47... Kg6
{[%clk 0:00:16.9]} 48. Qe8+ {[%clk 0:00:54.9]} 48... Kg5 {[%clk 0:00:17.1]} 49.
Qxe4 {[%clk 0:00:56]} 49... f5 {[%clk 0:00:16.9]} 50. Qe7+ {[%clk 0:00:56.6]}
50... Kg6 {[%clk 0:00:18]} 51. Qe6+ {[%clk 0:00:57.1]} 51... Kg5 {[%clk
0:00:18.5]} 52. Qg8+ {[%clk 0:00:56.5]} 52... Kh6 {[%clk 0:00:19.1]} 53. Kg1
{[%clk 0:00:52.8]} 53... f4 {[%clk 0:00:18.9]} 54. Qf7 {[%clk 0:00:49.2]} 54...
fxg3 {[%clk 0:00:18.2]} 55. Qe6+ {[%clk 0:00:45.7]} 55... Kg5 {[%clk 0:00:18.7]}
56. Qe5+ {[%clk 0:00:46.2]} 56... Kg6 {[%clk 0:00:19.7]} 57. fxg3 {[%clk
0:00:47]} 57... Rf5 {[%clk 0:00:20.5]} 58. Qe4 {[%clk 0:00:47.6]} 58... Kg5
{[%clk 0:00:21.3]} 59. Qe3+ {[%clk 0:00:48.4]} 59... Kg6 {[%clk 0:00:22]} 60.
Qe4 {[%clk 0:00:49.5]} 60... Kg5 {[%clk 0:00:22.9]} 61. Qe7+ {[%clk 0:00:51]}
61... Kg6 {[%clk 0:00:23.9]} 62. Qe8+ {[%clk 0:00:51]} 62... Kg7 {[%clk
0:00:21.1]} 63. Kg2 {[%clk 0:00:49.8]} 63... Rg5 {[%clk 0:00:21.5]} 64. Qe7+
{[%clk 0:00:50.2]} 64... Kg6 {[%clk 0:00:22.5]} 65. Qe6+ {[%clk 0:00:51.2]}
65... Kg7 {[%clk 0:00:23.9]} 66. Kf2 {[%clk 0:00:52.4]} 66... Kh7 {[%clk
0:00:20.2]} 67. Ke3 {[%clk 0:00:52.5]} 67... Rg6 {[%clk 0:00:19.1]} 68. Qf7+
{[%clk 0:00:52.4]} 68... Kh6 {[%clk 0:00:19.3]} 69. Kf4 {[%clk 0:00:53.9]} 69...
Rg7 {[%clk 0:00:18.8]} 70. Qf6+ {[%clk 0:00:52.3]} 70... Kh7 {[%clk 0:00:19.8]}
71. Kf5 {[%clk 0:00:52.6]} 71... Kg8 {[%clk 0:00:16.6]} 72. Qd8+ {[%clk
0:00:52.2]} 72... Kh7 {[%clk 0:00:16.7]} 73. Qe8 {[%clk 0:00:52.8]} 73... h4
{[%clk 0:00:14.6]} 74. Qh5+ {[%clk 0:00:53.1]} 74... Kg8 {[%clk 0:00:15.2]} 75.
Qxh4 {[%clk 0:00:54.5]} 75... Kf7 {[%clk 0:00:16.4]} 76. Qh5+ {[%clk 0:00:55.2]}
76... Kf8 {[%clk 0:00:15.1]} 77. Kf6 {[%clk 0:00:55.8]} 77... Kg8 {[%clk
0:00:10]} 78. Qh6 {[%clk 0:00:54.4]} 78... Rf7+ {[%clk 0:00:09.4]} 79. Ke6
{[%clk 0:00:54.6]} 79... Re7+ {[%clk 0:00:09.8]} 80. Kf5 {[%clk 0:00:53.9]}
80... Rg7 {[%clk 0:00:10.4]} 81. Qe6+ {[%clk 0:00:54.1]} 81... Rf7+ {[%clk
0:00:10.2]} 82. Kg6 {[%clk 0:00:52.8]} 82... Kh8 {[%clk 0:00:11.4]} 83. Kxf7
{[%clk 0:00:53.9]} 1-0

[Event "*** Titled Tuesday Blitz"]
[Site "Chess.com"]
[Date "2018.06.05"]
[Round "5"]
[White "michaelk123"]
[Black "enriquetejedor"]
[Result "0-1"]
[WhiteElo "2436"]
[BlackElo "2555"]
[TimeControl "180+2"]
[EndTime "14:16:26 PDT"]
[Termination "enriquetejedor won by resignation"]

1. e4 {[%clk 0:03:01.9]} 1... c5 {[%clk 0:02:55.5]} 2. Nf3 {[%clk 0:03:03.5]}
2... e6 {[%clk 0:02:48.3]} 3. d4 {[%clk 0:03:04.4]} 3... cxd4 {[%clk 0:02:50.2]}
4. Nxd4 {[%clk 0:03:06.2]} 4... Qb6 {[%clk 0:02:50.6]} 5. Nb3 {[%clk 0:03:05.4]}
5... Nf6 {[%clk 0:02:50.5]} 6. Bd3 {[%clk 0:03:04.2]} 6... Nc6 {[%clk 0:02:51]}
7. Be3 {[%clk 0:03:03.6]} 7... Qc7 {[%clk 0:02:52]} 8. Nc3 {[%clk 0:03:02.2]}
8... Be7 {[%clk 0:02:50]} 9. O-O {[%clk 0:03:03.3]} 9... O-O {[%clk 0:02:51.4]}
10. f4 {[%clk 0:03:02.6]} 10... d6 {[%clk 0:02:52.9]} 11. Kh1 {[%clk 0:03:01.5]}
11... a6 {[%clk 0:02:53.9]} 12. a4 {[%clk 0:03:01.9]} 12... b6 {[%clk
0:02:54.5]} 13. Qe1 {[%clk 0:02:56.9]} 13... Bb7 {[%clk 0:02:55.2]} 14. Nd2
{[%clk 0:02:43.3]} 14... Nb4 {[%clk 0:02:46.4]} 15. Nc4 {[%clk 0:02:41.9]} 15...
Nd7 {[%clk 0:02:46.1]} 16. Rf3 {[%clk 0:02:25]} 16... Nxd3 {[%clk 0:02:21.9]}
17. cxd3 {[%clk 0:02:25]} 17... d5 {[%clk 0:02:13]} 18. exd5 {[%clk 0:01:27]}
18... exd5 {[%clk 0:02:13.6]} 19. Nxb6 {[%clk 0:01:25.8]} 19... Nxb6 {[%clk
0:02:13.9]} 20. Bxb6 {[%clk 0:01:26.8]} 20... Qxb6 {[%clk 0:02:15.4]} 21. Qxe7
{[%clk 0:01:26.6]} 21... Qxb2 {[%clk 0:02:16.5]} 22. Rb1 {[%clk 0:01:25.4]}
22... Qxc3 {[%clk 0:02:13.8]} 23. Qxb7 {[%clk 0:01:26.2]} 23... Rfe8 {[%clk
0:01:43.6]} 24. h3 {[%clk 0:01:14.5]} 24... h6 {[%clk 0:01:41.7]} 25. f5 {[%clk
0:01:08.7]} 25... Qe5 {[%clk 0:01:17.8]} 26. Rbf1 {[%clk 0:00:21.3]} 26... Reb8
{[%clk 0:01:03.8]} 27. Qd7 {[%clk 0:00:21.8]} 27... Rd8 {[%clk 0:01:04.1]} 28.
Qc6 {[%clk 0:00:22.1]} 28... Rdc8 {[%clk 0:01:03.4]} 29. Qb6 {[%clk 0:00:16.2]}
29... Rab8 {[%clk 0:01:03.1]} 30. Qxa6 {[%clk 0:00:14.9]} 30... Rc2 {[%clk
0:01:03.3]} 31. Qa7 {[%clk 0:00:08.9]} 31... Rbb2 {[%clk 0:01:02]} 32. Qg1
{[%clk 0:00:05]} 32... Rxg2 {[%clk 0:00:53.3]} 33. Qxg2 {[%clk 0:00:06.9]} 33...
Rxg2 {[%clk 0:00:55.2]} 34. Kxg2 {[%clk 0:00:08.2]} 34... Qb2+ {[%clk
0:00:56.9]} 35. R1f2 {[%clk 0:00:09]} 35... Qa3 {[%clk 0:00:58.2]} 36. Rf4
{[%clk 0:00:08.3]} 36... Qxd3 {[%clk 0:00:58.2]} 37. f6 {[%clk 0:00:07.5]} 37...
g5 {[%clk 0:00:55.5]} 38. Rg4 {[%clk 0:00:08.1]} 38... Kh7 {[%clk 0:00:52.1]}
39. h4 {[%clk 0:00:08.7]} 39... Kg6 {[%clk 0:00:46.6]} 40. hxg5 {[%clk
0:00:07.7]} 40... h5 {[%clk 0:00:45.9]} 41. Rg3 {[%clk 0:00:07]} 41... Qe4+
{[%clk 0:00:45.5]} 42. Kh2 {[%clk 0:00:05.8]} 42... Qxa4 {[%clk 0:00:46.7]} 43.
Rff3 {[%clk 0:00:05.7]} 43... Qc2+ {[%clk 0:00:45.8]} 44. Kh3 {[%clk 0:00:05.3]}
44... Qd1 {[%clk 0:00:46.2]} 45. Kg2 {[%clk 0:00:05.3]} 45... Qe1 {[%clk
0:00:46.7]} 46. Re3 {[%clk 0:00:05.5]} 46... Qd2+ {[%clk 0:00:46.8]} 47. Kh3
{[%clk 0:00:06.1]} 47... d4 {[%clk 0:00:48.2]} 48. Rd3 {[%clk 0:00:06.8]} 48...
Qe1 {[%clk 0:00:49.6]} 49. Kg2 {[%clk 0:00:07]} 49... Qe2+ {[%clk 0:00:50.4]}
50. Kh3 {[%clk 0:00:06.7]} 50... Qf1+ {[%clk 0:00:51.4]} 51. Kh2 {[%clk
0:00:07.9]} 51... Qe2+ {[%clk 0:00:52.7]} 52. Kh3 {[%clk 0:00:09.1]} 52... Qe4
{[%clk 0:00:54.1]} 53. Rgf3 {[%clk 0:00:07.8]} 53... Qg4+ {[%clk 0:00:54.5]} 54.
Kh2 {[%clk 0:00:09.3]} 54... h4 {[%clk 0:00:55.9]} 55. Rh3 {[%clk 0:00:05.7]}
55... Qe2+ {[%clk 0:00:55.9]} 56. Kg1 {[%clk 0:00:06.5]} 56... Qe1+ {[%clk
0:00:56.8]} 57. Kg2 {[%clk 0:00:07.7]} 57... Kxg5 {[%clk 0:00:57.4]} 58. Rhf3
{[%clk 0:00:06.6]} 58... Qe2+ {[%clk 0:00:58.2]} 59. Kh3 {[%clk 0:00:07.5]}
59... Qe1 {[%clk 0:00:57.8]} 60. Kg2 {[%clk 0:00:08.8]} 60... Qa1 {[%clk
0:00:57.5]} 61. Rb3 {[%clk 0:00:07.1]} 61... Kg4 {[%clk 0:00:57.5]} 62. Rbd3
{[%clk 0:00:07]} 62... Qb2+ {[%clk 0:00:54.3]} 63. Kg1 {[%clk 0:00:07.8]} 63...
Qb1+ {[%clk 0:00:54.8]} 64. Kg2 {[%clk 0:00:09]} 64... Qa1 {[%clk 0:00:53.5]}
65. Kf2 {[%clk 0:00:07.9]} 65... Qa7 {[%clk 0:00:47.3]} 66. Kg2 {[%clk
0:00:08.6]} 66... Qc5 {[%clk 0:00:47]} 67. Kf2 {[%clk 0:00:08.4]} 67... Qd5
{[%clk 0:00:47.3]} 68. Ke2 {[%clk 0:00:07.2]} 68... Qe5+ {[%clk 0:00:48]} 69.
Kf2 {[%clk 0:00:08.2]} 69... Qe4 {[%clk 0:00:45.8]} 70. Rb3 {[%clk 0:00:06.8]}
70... Qe5 {[%clk 0:00:42.4]} 71. Rbd3 {[%clk 0:00:07.4]} 71... Qh2+ {[%clk
0:00:42.2]} 72. Kf1 {[%clk 0:00:08.3]} 72... h3 {[%clk 0:00:41.8]} 73. Rxh3
{[%clk 0:00:03.5]} 73... Qxh3+ {[%clk 0:00:41.2]} 74. Rxh3 {[%clk 0:00:05.4]}
74... Kxh3 {[%clk 0:00:41.6]} 75. Ke2 {[%clk 0:00:07.3]} 75... Kg4 {[%clk
0:00:40.5]} 76. Kd3 {[%clk 0:00:08.6]} 76... Kf5 {[%clk 0:00:41.9]} 77. Kxd4
{[%clk 0:00:09.9]} 77... Kxf6 {[%clk 0:00:43.4]} 78. Ke4 {[%clk 0:00:09.1]}
78... Kg5 {[%clk 0:00:44.7]} 79. Ke3 {[%clk 0:00:09]} 79... Kg4 {[%clk
0:00:43.7]} 80. Ke2 {[%clk 0:00:09.7]} 80... Kf4 {[%clk 0:00:42.6]} 81. Kf1
{[%clk 0:00:08.4]} 81... Kf3 {[%clk 0:00:43.6]} 82. Ke1 {[%clk 0:00:09.1]} 82...
f5 {[%clk 0:00:38.8]} 83. Kf1 {[%clk 0:00:09]} 83... f4 {[%clk 0:00:40.3]} 84.
Ke1 {[%clk 0:00:08.7]} 84... Kg2 {[%clk 0:00:41.5]} 0-1

[Event "*** Titled Tuesday Blitz"]
[Site "Chess.com"]
[Date "2018.06.05"]
[Round "5"]
[White "Fighterman91"]
[Black "The_Unbeatable_One"]
[Result "1-0"]
[WhiteElo "2588"]
[BlackElo "2593"]
[TimeControl "180+2"]
[EndTime "14:18:09 PDT"]
[Termination "Fighterman91 won by resignation"]

1. e4 {[%clk 0:03:01.9]} 1... e5 {[%clk 0:02:56.2]} 2. Nf3 {[%clk 0:03:02.8]}
2... Nc6 {[%clk 0:02:57]} 3. d4 {[%clk 0:03:04.4]} 3... exd4 {[%clk 0:02:57]} 4.
Nxd4 {[%clk 0:03:06.3]} 4... Nf6 {[%clk 0:02:52.6]} 5. Nxc6 {[%clk 0:03:07.6]}
5... bxc6 {[%clk 0:02:52.8]} 6. e5 {[%clk 0:03:09.2]} 6... Qe7 {[%clk
0:02:52.5]} 7. Qe2 {[%clk 0:03:10.8]} 7... Nd5 {[%clk 0:02:53.4]} 8. c4 {[%clk
0:03:12.5]} 8... Nb6 {[%clk 0:02:54.3]} 9. Nc3 {[%clk 0:03:13.3]} 9... Qe6
{[%clk 0:02:48.6]} 10. Qe4 {[%clk 0:03:13.9]} 10... Bb7 {[%clk 0:02:47]} 11. Bd3
{[%clk 0:03:10.3]} 11... O-O-O {[%clk 0:02:47.3]} 12. O-O {[%clk 0:03:10.5]}
12... c5 {[%clk 0:02:39.2]} 13. Qe2 {[%clk 0:03:12]} 13... f6 {[%clk 0:02:38.5]}
14. exf6 {[%clk 0:03:07.7]} 14... Qxf6 {[%clk 0:02:39.4]} 15. Be4 {[%clk
0:02:55.3]} 15... c6 {[%clk 0:02:37.1]} 16. Bf3 {[%clk 0:02:20.5]} 16... Bd6
{[%clk 0:02:37.2]} 17. Ne4 {[%clk 0:02:20.4]} 17... Qe5 {[%clk 0:02:32.5]} 18.
Nxd6+ {[%clk 0:02:19.7]} 18... Qxd6 {[%clk 0:02:33.6]} 19. Be3 {[%clk
0:02:17.5]} 19... Rhe8 {[%clk 0:02:29.4]} 20. Qc2 {[%clk 0:02:17.8]} 20... Ba6
{[%clk 0:02:03.4]} 21. b3 {[%clk 0:02:15.5]} 21... h6 {[%clk 0:01:52.8]} 22.
Rad1 {[%clk 0:02:07.2]} 22... Qe5 {[%clk 0:01:48.8]} 23. a4 {[%clk 0:02:00.4]}
23... Bb7 {[%clk 0:01:37.9]} 24. a5 {[%clk 0:02:00.5]} 24... Na8 {[%clk
0:01:38.9]} 25. b4 {[%clk 0:01:52.3]} 25... cxb4 {[%clk 0:01:39.3]} 26. Bxa7
{[%clk 0:01:35.9]} 26... Qc3 {[%clk 0:01:22.6]} 27. Qxc3 {[%clk 0:01:31.9]}
27... bxc3 {[%clk 0:01:23.4]} 28. Rc1 {[%clk 0:01:27.5]} 28... d6 {[%clk
0:00:56.8]} 29. Bd4 {[%clk 0:01:20.4]} 29... Re7 {[%clk 0:00:45.7]} 30. Bxc3
{[%clk 0:01:09.7]} 30... c5 {[%clk 0:00:29]} 31. Bxb7+ {[%clk 0:01:07.5]} 31...
Rxb7 {[%clk 0:00:29.5]} 32. Rfd1 {[%clk 0:00:58.5]} 32... g6 {[%clk 0:00:27.7]}
33. h3 {[%clk 0:00:50.4]} 33... Nc7 {[%clk 0:00:27.6]} 34. Re1 {[%clk
0:00:51.2]} 34... Rd7 {[%clk 0:00:24]} 35. Rb1 {[%clk 0:00:47.2]} 35... d5
{[%clk 0:00:21.3]} 36. Rxb7 {[%clk 0:00:47.9]} 36... Kxb7 {[%clk 0:00:22.6]} 37.
Rb1+ {[%clk 0:00:48.6]} 37... Ka7 {[%clk 0:00:23.3]} 38. cxd5 {[%clk 0:00:47.2]}
38... Nxd5 {[%clk 0:00:24.1]} 39. Bd2 {[%clk 0:00:42.7]} 39... h5 {[%clk
0:00:23.9]} 40. g4 {[%clk 0:00:29.6]} 40... hxg4 {[%clk 0:00:24.5]} 41. hxg4
{[%clk 0:00:31.5]} 41... c4 {[%clk 0:00:25.8]} 42. Rc1 {[%clk 0:00:31.6]} 42...
Rc7 {[%clk 0:00:26.3]} 43. Kf1 {[%clk 0:00:28]} 43... c3 {[%clk 0:00:26.4]} 44.
Be1 {[%clk 0:00:22.8]} 44... Ka6 {[%clk 0:00:27.2]} 45. Ke2 {[%clk 0:00:24.1]}
45... Kxa5 {[%clk 0:00:26]} 46. Kd3 {[%clk 0:00:25.2]} 46... Nf4+ {[%clk
0:00:23]} 47. Kc2 {[%clk 0:00:17.5]} 47... Nd5 {[%clk 0:00:20.7]} 48. Kb3 {[%clk
0:00:15]} 48... Rb7+ {[%clk 0:00:19.6]} 49. Kc4 {[%clk 0:00:15.4]} 49... Nb6+
{[%clk 0:00:19]} 50. Kxc3 {[%clk 0:00:15.6]} 50... Kb5 {[%clk 0:00:19.9]} 51.
Rb1+ {[%clk 0:00:16.4]} 51... Kc6 {[%clk 0:00:21.2]} 52. Kc2 {[%clk 0:00:16.8]}
52... Rf7 {[%clk 0:00:22.1]} 53. Kd3 {[%clk 0:00:17]} 53... Nd5 {[%clk
0:00:23.3]} 54. Rc1+ {[%clk 0:00:16.1]} 54... Kd6 {[%clk 0:00:23.9]} 55. Ke2
{[%clk 0:00:17.3]} 55... Rf4 {[%clk 0:00:24.7]} 56. f3 {[%clk 0:00:18]} 56...
Ra4 {[%clk 0:00:25.9]} 57. Bg3+ {[%clk 0:00:19.5]} 57... Ke6 {[%clk 0:00:26.7]}
58. Rc6+ {[%clk 0:00:20.6]} 58... Kf7 {[%clk 0:00:28]} 59. Rc2 {[%clk
0:00:20.6]} 59... Ra3 {[%clk 0:00:26.8]} 60. Kf2 {[%clk 0:00:21.6]} 60... Nf6
{[%clk 0:00:27]} 61. Be5 {[%clk 0:00:21]} 61... Nd5 {[%clk 0:00:27.6]} 62. Bg3
{[%clk 0:00:22.4]} 62... Rd3 {[%clk 0:00:27.1]} 63. Ra2 {[%clk 0:00:19.1]} 63...
Rb3 {[%clk 0:00:27.7]} 64. Rd2 {[%clk 0:00:18.6]} 64... Ke6 {[%clk 0:00:28.3]}
65. Re2+ {[%clk 0:00:18]} 65... Kf7 {[%clk 0:00:29.5]} 66. Be5 {[%clk
0:00:18.2]} 66... Rd3 {[%clk 0:00:29.8]} 67. Kg3 {[%clk 0:00:19.1]} 67... Rb3
{[%clk 0:00:29.1]} 68. Bd4 {[%clk 0:00:17.1]} 68... Rb4 {[%clk 0:00:27.3]} 69.
Rd2 {[%clk 0:00:17.7]} 69... Rb3 {[%clk 0:00:28.1]} 70. Bc5 {[%clk 0:00:17.6]}
70... Nf6 {[%clk 0:00:28.6]} 71. Re2 {[%clk 0:00:13.5]} 71... Nd5 {[%clk
0:00:26.7]} 72. Re5 {[%clk 0:00:14.3]} 72... Rd3 {[%clk 0:00:27.6]} 73. Bf2
{[%clk 0:00:11.1]} 73... Kf6 {[%clk 0:00:26.9]} 74. Re1 {[%clk 0:00:11.1]} 74...
Kf7 {[%clk 0:00:28]} 75. Re2 {[%clk 0:00:11]} 75... Nf6 {[%clk 0:00:28.8]} 76.
Re3 {[%clk 0:00:11.7]} 76... Rd1 {[%clk 0:00:29.2]} 77. Be1 {[%clk 0:00:12.1]}
77... Nd5 {[%clk 0:00:29.6]} 78. Re2 {[%clk 0:00:13.6]} 78... Rd3 {[%clk
0:00:30.6]} 79. Bd2 {[%clk 0:00:14.6]} 79... Nf6 {[%clk 0:00:31.2]} 80. Bg5
{[%clk 0:00:15.8]} 80... Nd5 {[%clk 0:00:31.2]} 81. Re5 {[%clk 0:00:17.2]} 81...
Rd1 {[%clk 0:00:31]} 82. Kf2 {[%clk 0:00:18.1]} 82... Rd4 {[%clk 0:00:26.6]} 83.
Ke2 {[%clk 0:00:17.7]} 83... Nc3+ {[%clk 0:00:20.6]} 84. Ke3 {[%clk 0:00:18.7]}
84... Rd7 {[%clk 0:00:21.9]} 85. f4 {[%clk 0:00:17]} 85... Nd5+ {[%clk
0:00:22.9]} 86. Ke4 {[%clk 0:00:18.3]} 86... Nc3+ {[%clk 0:00:24.2]} 87. Ke3
{[%clk 0:00:19.3]} 87... Nd5+ {[%clk 0:00:25.3]} 88. Kf3 {[%clk 0:00:20.9]}
88... Nc3 {[%clk 0:00:26.2]} 89. Re3 {[%clk 0:00:22.2]} 89... Nd5 {[%clk
0:00:26.7]} 90. Rd3 {[%clk 0:00:22.7]} 90... Ke6 {[%clk 0:00:28]} 91. Ke4 {[%clk
0:00:22.7]} 91... Nf6+ {[%clk 0:00:22.7]} 92. Bxf6 {[%clk 0:00:23.4]} 92... Rxd3
{[%clk 0:00:23.7]} 93. Kxd3 {[%clk 0:00:24.7]} 93... Kxf6 {[%clk 0:00:24.9]} 94.
Kd4 {[%clk 0:00:24.9]} 94... Ke6 {[%clk 0:00:22.4]} 95. Kc5 {[%clk 0:00:26.2]}
95... Ke7 {[%clk 0:00:21.6]} 96. Kd5 {[%clk 0:00:22.9]} 96... Kf6 {[%clk
0:00:20.6]} 97. Kd6 {[%clk 0:00:22.3]} 97... Kf7 {[%clk 0:00:20.9]} 98. Ke5
{[%clk 0:00:22.8]} 98... Ke7 {[%clk 0:00:22.2]} 99. g5 {[%clk 0:00:24.3]} 99...
Kf7 {[%clk 0:00:23.6]} 100. Kd6 {[%clk 0:00:25.8]} 100... Kf8 {[%clk 0:00:25]}
101. Ke6 {[%clk 0:00:26.9]} 101... Kg7 {[%clk 0:00:26.5]} 102. Ke7 {[%clk
0:00:28.4]} 102... Kg8 {[%clk 0:00:28]} 103. Kf6 {[%clk 0:00:29.5]} 1-0

[Event "*** Titled Tuesday Blitz"]
[Site "Chess.com"]
[Date "2018.06.05"]
[Round "6"]
[White "DiamondCrusher22"]
[Black "PawnEatingZombie"]
[Result "1-0"]
[WhiteElo "1978"]
[BlackElo "2038"]
[TimeControl "180+2"]
[EndTime "14:21:35 PDT"]
[Termination "DiamondCrusher22 won by checkmate"]

1. e4 {[%clk 0:02:47.2]} 1... c5 {[%clk 0:03:00.5]} 2. Nf3 {[%clk 0:02:47.8]}
2... e6 {[%clk 0:03:02]} 3. c3 {[%clk 0:02:48.5]} 3... Nf6 {[%clk 0:02:58.6]} 4.
e5 {[%clk 0:02:49.5]} 4... Nd5 {[%clk 0:03:00.1]} 5. d4 {[%clk 0:02:50.4]} 5...
cxd4 {[%clk 0:03:02]} 6. cxd4 {[%clk 0:02:51.5]} 6... d6 {[%clk 0:03:03.4]} 7.
a3 {[%clk 0:02:49.2]} 7... Bd7 {[%clk 0:03:03]} 8. Bd3 {[%clk 0:02:49.3]} 8...
Bc6 {[%clk 0:03:03.7]} 9. O-O {[%clk 0:02:50.3]} 9... Nd7 {[%clk 0:03:04.7]} 10.
Qe2 {[%clk 0:02:47.8]} 10... Be7 {[%clk 0:03:05.2]} 11. Nc3 {[%clk 0:02:48.7]}
11... Nxc3 {[%clk 0:03:04.6]} 12. bxc3 {[%clk 0:02:49.5]} 12... dxe5 {[%clk
0:03:06]} 13. Nxe5 {[%clk 0:02:48.4]} 13... Nxe5 {[%clk 0:03:07.2]} 14. Qxe5
{[%clk 0:02:48]} 14... O-O {[%clk 0:03:06.6]} 15. Re1 {[%clk 0:02:43.1]} 15...
Rc8 {[%clk 0:02:59.9]} 16. Qh5 {[%clk 0:02:33.6]} 16... Qd5 {[%clk 0:02:57.4]}
17. Qxh7# {[%clk 0:02:32]} 1-0

[Event "*** Titled Tuesday Blitz"]
[Site "Chess.com"]
[Date "2018.06.05"]
[Round "6"]
[White "saikrishnaReturns"]
[Black "vpantev"]
[Result "1-0"]
[WhiteElo "2642"]
[BlackElo "2443"]
[TimeControl "180+2"]
[EndTime "14:22:28 PDT"]
[Termination "saikrishnaReturns won by resignation"]

1. e4 {[%clk 0:03:01.9]} 1... c6 {[%clk 0:03:00.6]} 2. Nc3 {[%clk 0:03:01.6]}
2... d5 {[%clk 0:03:01.2]} 3. Nf3 {[%clk 0:03:03.2]} 3... dxe4 {[%clk 0:03:02]}
4. Nxe4 {[%clk 0:03:03.9]} 4... Nf6 {[%clk 0:03:03.8]} 5. Nxf6+ {[%clk
0:03:04.6]} 5... exf6 {[%clk 0:03:04.7]} 6. Bc4 {[%clk 0:03:02.9]} 6... Bd6
{[%clk 0:03:05.3]} 7. O-O {[%clk 0:03:03.6]} 7... O-O {[%clk 0:03:05.6]} 8. d4
{[%clk 0:03:02.6]} 8... Re8 {[%clk 0:03:03.5]} 9. c3 {[%clk 0:02:56.2]} 9... Nd7
{[%clk 0:03:03.5]} 10. Qb3 {[%clk 0:02:49.6]} 10... Re7 {[%clk 0:03:04.1]} 11.
Bd2 {[%clk 0:02:48]} 11... Nb6 {[%clk 0:03:04.6]} 12. Bd3 {[%clk 0:02:48.9]}
12... Bg4 {[%clk 0:03:03.6]} 13. Nh4 {[%clk 0:02:46.5]} 13... Qc7 {[%clk
0:02:59.8]} 14. h3 {[%clk 0:02:45.7]} 14... Be6 {[%clk 0:02:58.1]} 15. c4 {[%clk
0:02:42.5]} 15... Bf4 {[%clk 0:02:51.9]} 16. Ba5 {[%clk 0:02:33.5]} 16... Qd7
{[%clk 0:02:46.9]} 17. Rad1 {[%clk 0:02:22.5]} 17... Bxh3 {[%clk 0:02:41]} 18.
gxh3 {[%clk 0:02:22.3]} 18... Qxh3 {[%clk 0:02:41]} 19. Bxh7+ {[%clk 0:02:22.6]}
1-0

[Event "*** Titled Tuesday Blitz"]
[Site "Chess.com"]
[Date "2018.06.05"]
[Round "6"]
[White "Patzel09"]
[Black "hitaman"]
[Result "1-0"]
[WhiteElo "2603"]
[BlackElo "2566"]
[TimeControl "180+2"]
[EndTime "14:24:41 PDT"]
[Termination "Patzel09 won by resignation"]

1. e4 {[%clk 0:03:01.9]} 1... e5 {[%clk 0:03:00.3]} 2. f4 {[%clk 0:03:02.1]}
2... d5 {[%clk 0:02:58.6]} 3. exd5 {[%clk 0:03:04]} 3... exf4 {[%clk 0:02:59.7]}
4. Nf3 {[%clk 0:03:04.3]} 4... Nf6 {[%clk 0:03:00.2]} 5. Nc3 {[%clk 0:03:05.3]}
5... Nxd5 {[%clk 0:02:57.2]} 6. Nxd5 {[%clk 0:03:07.2]} 6... Qxd5 {[%clk
0:02:57.9]} 7. d4 {[%clk 0:03:09.1]} 7... Bd6 {[%clk 0:02:51.7]} 8. c4 {[%clk
0:03:09.7]} 8... Qe4+ {[%clk 0:02:47.7]} 9. Kf2 {[%clk 0:03:11.1]} 9... O-O
{[%clk 0:02:45.5]} 10. Bd3 {[%clk 0:03:11.8]} 10... Qe8 {[%clk 0:02:41.7]} 11.
c5 {[%clk 0:03:10.8]} 11... Be7 {[%clk 0:02:42.8]} 12. Bxf4 {[%clk 0:03:12.1]}
12... Bg4 {[%clk 0:02:38.2]} 13. Re1 {[%clk 0:03:08.4]} 13... Qd8 {[%clk
0:02:35.2]} 14. Be4 {[%clk 0:03:08.8]} 14... Nc6 {[%clk 0:02:33.6]} 15. Qa4
{[%clk 0:02:58.6]} 15... Bf6 {[%clk 0:02:21]} 16. d5 {[%clk 0:02:56.8]} 16...
Bxf3 {[%clk 0:02:18]} 17. Bxf3 {[%clk 0:02:47.8]} 17... Nd4 {[%clk 0:02:18.6]}
18. Be4 {[%clk 0:02:45.8]} 18... Re8 {[%clk 0:01:54.6]} 19. Rad1 {[%clk
0:02:39.3]} 19... b5 {[%clk 0:01:55.7]} 20. Qa3 {[%clk 0:02:23.6]} 20... Rxe4
{[%clk 0:01:48.5]} 21. Rxe4 {[%clk 0:02:23.3]} 21... Qxd5 {[%clk 0:01:50.4]} 22.
Qe3 {[%clk 0:02:14.9]} 22... g5 {[%clk 0:01:32.1]} 23. Be5 {[%clk 0:01:44.7]}
1-0